Cogmind - Beta 16 @@@ ROGUE MODE // 2025.10.22 @ 16:55:37 Player: Visionary Result: Destroyed by 8Z-OF0(R) with Subdweller Machine Gun Performance ------------- Evolutions (0) 0 Regions Visited (2) 400 Robots Destroyed (6) 30 Value Destroyed (145) 145 Prototype IDs (0) 0 Alien Tech Used (0) 0 Bonus (0) 0 TOTAL SCORE: 575 Bonus ------- None Cogmind --------- Core Integrity 0/250 Matter 300/300 Energy 248/250 System Corruption 0% Temperature Cool (9) Movement Core (50) Location -10/Subcaves Parts ------- > --- POWER (1) -------- (None) > --- PROPULSION (2) --- (None) > --- UTILITY (2) ------ Improved Heat Sink Medium Battery > --- WEAPON (2) ------- (None) > --- INVENTORY (5) ---- Small Battery (100) Terrain Scan Processor ECM Suite Core Shielding Peak State ------------ > --- POWER ------------ Light Ion Engine > --- PROPULSION ------- Aluminum Leg Aluminum Leg > --- UTILITY ---------- Improved Heat Sink Medium Battery > --- WEAPON ----------- EM Pulse Gun Medium Laser > --- INVENTORY -------- Small Battery Terrain Scan Processor ECM Suite Core Shielding Core Shielding [Rating: 9] Favorites ----------- Power Light Ion Engine Engine Light Ion Engine Propulsion Aluminum Leg Leg Aluminum Leg Utility Medium Battery Device ECM Suite Storage Medium Battery Protection Core Shielding Weapon EM Pulse Gun Energy Gun EM Pulse Gun Build | -11 -10 -10 ------- Run | Yrd Mat Sub Slots Evolved . | . . . Power . | . . . Propulsion . | . . . Utility . | . . . Weapon . | . . . Parts Attached 11 | 5 5 1 Power 1 | 1 . . Engine 1 | 1 . . Core . | . . . Reactor . | . . . Propulsion 2 | 2 . . Treads . | . . . Leg 2 | 2 . . Wheel . | . . . Hover . | . . . Flight . | . . . Utility 5 | . 5 . Device 2 | . 2 . Storage 2 | . 2 . Processor . | . . . Hackware . | . . . Protection 1 | . 1 . Artifact . | . . . Weapon 3 | 2 . 1 Energy Gun 3 | 2 . 1 Energy Cannon . | . . . Ballistic Gun . | . . . Ballistic Cannon . | . . . Launcher . | . . . Special Weapon . | . . . Impact Weapon . | . . . Slashing Weapon . | . . . Piercing Weapon . | . . . Special Melee Weapon . | . . . Unidentified Prototypes . | . . . Parts Lost 6 | . . 6 Power 1 | . . 1 Propulsion 2 | . . 2 Utility . | . . . Weapon 3 | . . 3 Highest Loss Streak 6 | . . 6 To Critical Strikes . | . . . Average Backups 2 | . 2 4 Power . | . . . Propulsion . | . . . Utility 2 | . 2 4 Weapon . | . . . Tool/Special . | . . . Unused Backups 2 | . . 2 Power . | . . . Propulsion . | . . . Utility 2 | . . 2 Weapon . | . . . Tool/Special . | . . . Average Slot Usage (%) 90 | . 95 74 Engine 13 | . 14 9 Leg 25 | . 28 18 Device 11 | . 10 14 Storage 12 | . 11 14 Energy Gun 25 | . 28 16 Peak Build Rating 9 | 5 9 9 Average Rating 6 | 3 7 7 On Entrance 4 | . 5 9 Avg Prop Armor Cover (%) . | . . . Naked Turns . | . . . Heaviest Build 11 | 7 11 10 Greatest Support 20 | 20 20 20 Greatest Overweight (x) 1 | . . 1 Average Overweight (x) . | . . . Largest Inventory Capacity 5 | 5 5 5 Average Capacity 5 | 5 5 5 Most Carried 5 | 2 5 5 Average Carried 2 | . 2 4 Final Capacity 5 | 5 5 5 Final Carried 5 | . 5 4 Class Distribution -------------------- 100% | Mutant Dominant Class ---------------- Mutant | -10/Materials Mutant | -10/Subcaves Resources | -11 -10 -10 ----------- Run | Yrd Mat Sub Matter Collected 300 | 250 50 . Remotely . | . . . Salvage Created 210 | 43 167 . Parts 15 | 4 11 . Haulers Intercepted . | . . . Recyclers Shooed . | . . . Parts Field Recycled . | . . . Retrieved Matter . | . . . Parts Self-Destructed . | . . . Prevented . | . . . Parts Restored . | . . . Kills | -11 -10 -10 ------- Run | Yrd Mat Sub Combat Hostiles Destroyed 6 | 1 5 . Guns 6 | 1 5 . Classes Destroyed 2 | 1 1 . Swarmer 3 | . 3 . Grunt 3 | 1 2 . Best Kill Streak 5 | 1 5 . Combat Bots Only 5 | 1 5 . Max Kills in Single Turn 1 | 1 1 . Gunslinging . | . . . Exploded . | . . . Melee . | . . . Uniques/NPCs Destroyed . | . . . Combat | -11 -10 -10 -------- Run | Yrd Mat Sub Hostile Shots Fired 53 | 2 23 28 Missed 13 | 1 3 9 Hits 40 | 1 20 19 Projectile 40 | 1 20 19 Critical Strikes 1 | . . 1 Damage Taken 690 | 11 185 494 Core 269 | . 34 235 Absorbed by Shields . | . . . Redirected to Shielding 4 | . 4 . Core Remaining (%) 100 | 100 . . Volleys Fired 12 | 2 10 . Largest 2 | 2 2 . Hottest 90 | 90 90 . Shots Fired 24 | 4 20 . Gun 24 | 4 20 . Cannon . | . . . Launcher . | . . . Special . | . . . Kinetic . | . . . Thermal 12 | 2 10 . Explosive . | . . . Electromagnetic 12 | 2 10 . Robot Hit Streak 8 | 1 8 . Robot Miss Streak 2 | 1 2 . Penetration Max . | . . . Secondary Targets 2 | . 2 . Max Gunslinging Chain 1 | . 1 . Shots Hit Robots 14 | 2 12 . Core Hits 9 | 2 7 . Critical Kills . | . . . Critical Parts Destroyed . | . . . Critical Strikes . | . . . Melee Attacks . | . . . Impact . | . . . Slashing . | . . . Piercing . | . . . Sneak Attacks . | . . . Combat Hostiles . | . . . Follow-up Attacks . | . . . Damage Inflicted 169 | 25 144 . Guns 169 | 25 144 . Cannons . | . . . Explosions . | . . . Melee . | . . . Ramming . | . . . Kinetic . | . . . Thermal 62 | . 62 . Explosive . | . . . Electromagnetic 107 | 25 82 . Impact . | . . . Slashing . | . . . Piercing . | . . . Highest Corruption . | . . . Average Corruption . | . . . Corruption Purged . | . . . Corruption Blocked . | . . . Overload Shots . | . . . Overflow Damage . | . . . Projectiles . | . . . Explosions . | . . . Melee . | . . . Knockbacks . | . . . Impact . | . . . Kinetic . | . . . Secondary . | . . . Self-Inflicted Damage . | . . . Shots . | . . . Rammed . | . . . Targets Rammed . | . . . Kicked . | . . . Crushed . | . . . Highest Temperature 305 | 66 305 235 Average Temperature 125 | 35 143 131 Received Heat Transfer 433 | 6 45 382 Effects 1 | . 1 . Energy Bleed 1 | . 1 . Siege Activations . | . . . Martial Activations . | . . . Shielding Activations . | . . . Robots Disrupted . | . . . Combat Hostiles . | . . . Robots Corrupted . | . . . Combat Hostiles . | . . . Parts Fried . | . . . Impact Corruptions . | . . . Robots Melted . | . . . Combat Hostiles . | . . . Parts Melted 1 | . 1 . Heat Transferred 185 | . 185 . Parts Sabotaged . | . . . Parts Stolen . | . . . Parts Stripped . | . . . Power Chain Reactions . | . . . Alert | -11 -10 -10 ------- Run | Yrd Mat Sub Maximum Alert Level . | . . . Low Security (%) 100 | 100 100 . Level 1 . | . . . Level 2 . | . . . Level 3 . | . . . Level 4 . | . . . Level 5 . | . . . High Security . | . . . Max Security . | . . . Peak Influence 110 | 20 110 . Initial 13 | . 13 . Average 19 | 2 22 . Influence Increases 149 | 20 129 . Destroy 0b10 Robot/C 120 | 20 100 . Destroy Leader 20 | . 20 . Successful Hack 9 | . 9 . Influence Decreases 149 | . 79 70 Entered New Map 41 | . 7 34 Time Decay 92 | . 72 20 Lost Part 16 | . . 16 Squads Dispatched . | . . . Investigation . | . . . Extermination . | . . . Reinforcement . | . . . Assault . | . . . Garrison . | . . . Intercept . | . . . Searches Triggered . | . . . Construction Impeded . | . . . Haulers Reinforced . | . . . Active Scanning Responses . | . . . Cargo Convoy Interrupts . | . . . Stealth | -11 -10 -10 --------- Run | Yrd Mat Sub Distress Signals 1 | . 1 . Communications Jammed . | . . . Distress Signals . | . . . Times Spotted 12 | 1 8 3 Peak Tracking Total 7 | 1 7 3 Tactical Retreats 1 | . 1 . ECM-based Alert Blocks 5 | . 5 . Traps | -11 -10 -10 ------- Run | Yrd Mat Sub Traps Triggered 1 | . . 1 Indirectly . | . . . Trap Hack Attempts . | . . . Triggered . | . . . Disarmed . | . . . Reprogrammed . | . . . Reused . | . . . Traps Extracted . | . . . Installed . | . . . Triggered . | . . . Machines | -11 -10 -10 ---------- Run | Yrd Mat Sub Machines Disabled . | . . . Max in Single Turn . | . . . Machines Repaired . | . . . Machines Dismantled . | . . . Machines Sabotaged . | . . . Overloaded Fab Kills . | . . . Hacking | -11 -10 -10 --------- Run | Yrd Mat Sub Machines Accessed 3 | . 3 . Terminals 2 | . 2 . Fabricators . | . . . Repair Stations . | . . . Recycling Units 1 | . 1 . Scanalyzers . | . . . Garrison Access . | . . . Total Hacks 13 | . 13 . Successful 8 | . 8 . Failed 5 | . 5 . Catastrophic . | . . . Database Lockouts . | . . . Manual . | . . . Terminals 8 | . 8 . Fabricators . | . . . Repair Stations . | . . . Recycling Units 5 | . 5 . Scanalyzers . | . . . Garrison Access . | . . . Terminal Hacks 4 | . 4 . Record 3 | . 3 . Zone Layout 1 | . 1 . Fabricator Hacks . | . . . Repair Station Hacks . | . . . Recycling Unit Hacks 4 | . 4 . Recycle Component 1 | . 1 . Process 2 | . 2 . Report Inventory 1 | . 1 . Scanalyzer . | . . . Garrison Access Hacks . | . . . Unauthorized Hacks . | . . . Terminals . | . . . Fabricators . | . . . Repair Stations . | . . . Recycling Units . | . . . Scanalyzers . | . . . Garrison Access . | . . . Data Cores Recovered . | . . . Used . | . . . Hacking Detections 2 | . 2 . Full Trace Events 1 | . 1 . Feedback Events . | . . . Feedback Blocked . | . . . Robot Schematics Acquired . | . . . Robots Built . | . . . Authchips . | . . . Time . | . . . Total Robot Build Rating . | . . . Part Schematics Acquired . | . . . Parts Built . | . . . Authchips . | . . . Time . | . . . Total Part Build Rating . | . . . Part Studies Acquired . | . . . Parts Repaired . | . . . Time . | . . . Parts Recycled 1 | . 1 . Recycled Matter 18 | . 18 . Retrieved Matter . | . . . Retrieved Components . | . . . Parts Scanalyzed . | . . . Part Schematics Acquired . | . . . Parts Damaged . | . . . Bothacking | -11 -10 -10 ------------ Run | Yrd Mat Sub Used RIF Installer . | . . . Robots Hacked . | . . . Non-combat . | . . . Combat . | . . . Robot Hacks Applied . | . . . Relay Couplers Released . | . . . Fabnet Peak Effective % . | . . . Robots Rewired . | . . . Allies Hacked . | . . . Hacks Repelled . | . . . Allies | -11 -10 -10 -------- Run | Yrd Mat Sub Total Allies . | . . . Largest Group . | . . . Highest-Rated Group . | . . . Highest-Rated Ally . | . . . Total Orders . | . . . Ally Attacks . | . . . Total Damage . | . . . Kills . | . . . Allies Corrupted . | . . . Allies Melted . | . . . Intel | -11 -10 -10 ------- Run | Yrd Mat Sub Active Infowar (turns) 210 | . 210 . ECM 210 | . 210 . Robot Analysis Total . | . . . Derelict Logs Recovered . | . . . Drone Launches . | . . . Drone Recoveries . | . . . Exploration | -11 -10 -10 ------------- Run | Yrd Mat Sub Turns Passed 511 | 74 345 92 Spaces Moved 417 | 60 251 106 Core 79 | 19 . 60 Treads . | . . . Legs 338 | 41 251 46 Wheels . | . . . Hover . | . . . Flight . | . . . Fastest Speed 50 | 50 120 50 Average Speed 107 | 97 120 82 Slowest Speed 120 | 120 120 120 Overloaded Moves . | . . . Propulsion Burnouts . | . . . Robots Hopped . | . . . Potential Cave-ins . | . . . Cave-ins Triggered . | . . . Exploration Rate (%) 17 | 8 40 4 Regions Visited 2 Branch Regions 1 Pre-discovered Areas . | . . . Known Exits Taken . | . . . Unknown Exits Taken 2 | 1 1 . Scrap Searched . | . . . Spaces Dug . | . . . Terrain Destroyed . | . . . Melee . | . . . Projectile . | . . . AOE . | . . . Terrain Rammed . | . . . Walls Destroyed . | . . . Machines Disabled . | . . . Actions | -11 -10 -10 --------- Run | Yrd Mat Sub Total 455 | 71 273 111 Wait . | . . . Move 415 | 59 250 106 Hop . | . . . Pick Up 15 | 5 8 2 Fast Attach . | . . . Attach 8 | 5 2 1 Detach . | . . . Swap 3 | . 3 . Drop 2 | . . 2 Fire 12 | 2 10 . Melee . | . . . Ram . | . . . Kick . | . . . Crush . | . . . Escape Stasis . | . . . Rewire . | . . . Trap . | . . . Miscellaneous . | . . . Route ------- -11/Scrapyard -10/Materials (discovered 2 exits: [*Mat] / [*Sub]) -10/Subcaves History --------- Turn | Location | Event 2 | -11/Scrapyard | Met Revision 17 57 | -11/Scrapyard | Discovered new exit (range 8) 75 | -11/Scrapyard | Entered Materials 76 | -10/Materials | Met a group of wandering Federalists 304 | -10/Materials | Build established: Mutant 403 | -10/Materials | Discovered new exit (range 9) 416 | -10/Materials | Discovered new exit (range 5) 420 | -10/Materials | Entered Subcaves 421 | -10/Subcaves | Continued accompanying wandering Federalists (3) 427 | -10/Subcaves | Shifting Twisted Machinery released Mak. Light Armor Plating 460 | -10/Subcaves | A Subdweller sparked back to life 485 | -10/Subcaves | Core integrity fell below 50% 491 | -10/Subcaves | Lost 3 allies 499 | -10/Subcaves | Core integrity fell below 20% 506 | -10/Subcaves | Shifting Twisted Machinery released Mak. Light Armor Plating 512 | -10/Subcaves | Destroyed by 8Z-OF0(R) with Subdweller Machine Gun Last Messages --------------- destroying it. 8Z-OF0(R) creaks and sparks as it begins to move. Acquired Scrap Shield Fragment. Subatomizers dissect the Salvaging Laser. Triggered Piercing Trap. Spikes shoot up from the floor. Critical hit (Impale). EM Pulse Gun destroyed. Med. Laser destroyed. Aluminum Leg destroyed. Dropped Scrap Shield Fragment. Acquired Salvaging Laser. Subatomizers dissect the Salvaging Laser. Salvaging Laser destroyed. Aluminum Leg destroyed. Critical hit (Meltdown: +280). Lgt. Ion Engine destroyed. Mak. Light Armor Plating falls loose from the Twisted Machinery. Map ----- +----------------------------------------------------+ | ?????????????????????????????????????????????????? | | ?????????????????????????????????????????????????? | | ?????????????????????????????????????????????????? | | ?????????????????????????????????????????????????? | | ?????????????????????????????????????????????????? | | ?????????????????????????????????????????????????? | | ?????????????????????????????????????????????????? | | ?????????????????????????????????????????????????? | | ??????????????????????????????????? ?????????????? | | ??????????????????????????????????? #????????????? | | ??????????????????????????????????? #??? ????????? | | ??????????????????????????????????? #?? ##???????? | | ??????????????????????????????????? ?? ????????? | | ??????????????????????????????????? ? #????????? | | ??????????????????????????????????? ## ?????????? | | ???????????????????????????????#### ??????????? | | ???????????????????????????????# ???????????? | | ????????????????#?######???????? #???????????? | | ???????????????##"# # ###?????? ^ #???????????? | | ????????????####" " ##?????? #????????????? | | ????????????# " " #????### ##???????????? | | ??????????# !" "## ! #######"; ;#???????????? | | ???????? "#?## ## # ;[[ ;#???????????? | | ?????? # ???# R R =% *##???????????? | | ??????? #?#!????# R #" "% ##??????????? | | ???????? ??? "????### @ ##""""& ## "#????? | | ????????? ???##???????## ####### "[%#???? | | ?????????????????????#### ##????# ^ & &" ? | | ?????????????????????# ##???## ## | | ?????????????????????# #????####?# " | | ?????????????????????# ######?????????? "" #### | | ?????????????????????#####????????????????####???? | | ?????????????????????????????????????????????????? | | ?????????????????????????????????????????????????? | | ?????????????????????????????????????????????????? | | ?????????????????????????????????????????????????? | | ?????????????????????????????????????????????????? | | ?????????????????????????????????????????????????? | | ?????????????????????????????????????????????????? | | ?????????????????????????????????????????????????? | | ?????????????????????????????????????????????????? | | ?????????????????????????????????????????????????? | | ?????????????????????????????????????????????????? | | ?????????????????????????????????????????????????? | | ?????????????????????????????????????????????????? | | ?????????????????????????????????????????????????? | | ?????????????????????????????????????????????????? | | | | | | | +----------------------------------------------------+ Best States ------------- Heat Dissipation 39 Energy Generation 10 Energy Capacity 275 Matter Stores 300 Matter Capacity 300 Sight Range 16 Terrain Scan Density 10 ECM Strength 1 Core Shielding 20 Evasion (%) 55 Item Schematics ----------------- None Robot Schematics ------------------ None Fabricated ------------ Nothing Repaired ---------- Nothing Studied --------- None Alien Tech Used ----------------- None Achievements -------------- DATA ERROR: Steam Global Achievement% Strength In Numbers Challenges ------------ None Game ------ Seed CloakMolecularProtomatter Manual? 0 Play Time 00:13:33 Cumulative 0.6 hours Start 2025.10.22 @ 16:43:44 End 2025.10.22 @ 16:55:37 Sessions 1 Manual Loads 0 Difficulty Rogue Special Mode None Game No. 2 Rogue 2 Adventurer 0 Explorer 0 Win Type - Total 0 Types 0/0/0/0/0/0/0/0/0/0 Lore% 0 Gallery% 1 Achievement% 1 Wizard Run 0 Options --------- Layout 1 ASCII 0 Keyboard 0 Movement Arrows Keybinds 0 Fullscreen 1 Font 24/Smallcaps Map View 50x35 Zoom Use 0% Tactical HUD 0 Map Filters NONE Filters NONE Steam 1 RUN: f88a6e47-562b-4017-8970-25bb35732fa4